[Event "*** SCC Grand Prix: Titled Tuesday Blitz"]
[Site "Chess.com"]
[Date "2020.09.08"]
[Round "3"]
[White "Shield12"]
[Black "Rodchenkov_Vitalij"]
[Result "1-0"]
[WhiteElo "2816"]
[BlackElo "2573"]
[TimeControl "180+1"]
[EndTime "10:29:16 PDT"]
[Termination "Shield12 won by resignation"]

1. e4 {[%clk 0:03:00.9]} 1... c6 {[%clk 0:02:54]} 2. d4 {[%clk 0:03:00.3]} 2...
d5 {[%clk 0:02:54.3]} 3. exd5 {[%clk 0:03:01.2]} 3... cxd5 {[%clk 0:02:54]} 4.
Bd3 {[%clk 0:03:01.9]} 4... Nc6 {[%clk 0:02:52.8]} 5. c3 {[%clk 0:03:02.3]} 5...
g6 {[%clk 0:02:51.4]} 6. h3 {[%clk 0:03:01.6]} 6... Bg7 {[%clk 0:02:51.6]} 7.
Nf3 {[%clk 0:03:01.8]} 7... Nh6 {[%clk 0:02:51.4]} 8. O-O {[%clk 0:03:01.6]}
8... O-O {[%clk 0:02:46]} 9. Re1 {[%clk 0:03:01.3]} 9... f6 {[%clk 0:02:45.2]}
10. c4 {[%clk 0:02:31.3]} 10... e6 {[%clk 0:02:44.4]} 11. Nc3 {[%clk 0:02:30]}
11... Nf7 {[%clk 0:02:43.3]} 12. a3 {[%clk 0:02:28.7]} 12... b6 {[%clk
0:02:12.5]} 13. cxd5 {[%clk 0:02:24.4]} 13... exd5 {[%clk 0:02:12.1]} 14. Qb3
{[%clk 0:02:22.5]} 14... Ne7 {[%clk 0:01:53.7]} 15. Bd2 {[%clk 0:02:14.4]} 15...
Bb7 {[%clk 0:01:53.4]} 16. Re6 {[%clk 0:02:10.2]} 16... Nd6 {[%clk 0:01:41.2]}
17. Rae1 {[%clk 0:02:02.9]} 17... Rf7 {[%clk 0:01:41]} 18. Qb4 {[%clk 0:01:51]}
18... Ne4 {[%clk 0:01:15]} 19. Nxe4 {[%clk 0:01:47]} 19... dxe4 {[%clk
0:01:15.1]} 20. Bxe4 {[%clk 0:01:47.9]} 20... Bxe4 {[%clk 0:01:03.4]} 21. R1xe4
{[%clk 0:01:41.1]} 21... Nd5 {[%clk 0:01:02.9]} 22. Qc4 {[%clk 0:01:36.4]} 22...
Qd7 {[%clk 0:01:01.6]} 23. Re1 {[%clk 0:01:27.3]} 23... Bf8 {[%clk 0:00:56.4]}
24. Qb3 {[%clk 0:01:19.5]} 24... Rc8 {[%clk 0:00:55.1]} 25. R6e2 {[%clk
0:01:13.3]} 25... Kg7 {[%clk 0:00:53.2]} 26. Qd3 {[%clk 0:01:11.8]} 26... Qa4
{[%clk 0:00:46.6]} 27. Qe4 {[%clk 0:01:10.9]} 27... Rd7 {[%clk 0:00:42.1]} 28.
Qh4 {[%clk 0:01:08.9]} 28... Kg8 {[%clk 0:00:29.6]} 29. Bh6 {[%clk 0:01:05]}
29... Bxh6 {[%clk 0:00:21.5]} 30. Qxh6 {[%clk 0:01:05.9]} 30... Rdc7 {[%clk
0:00:21.5]} 31. h4 {[%clk 0:00:58.7]} 31... Qd7 {[%clk 0:00:21.4]} 32. Re6
{[%clk 0:00:43.2]} 32... Qg7 {[%clk 0:00:20.6]} 33. Qd2 {[%clk 0:00:39.6]} 33...
Qf7 {[%clk 0:00:19.5]} 34. g3 {[%clk 0:00:37.1]} 34... Rc2 {[%clk 0:00:18.9]}
35. Qd3 {[%clk 0:00:29.6]} 35... Rxb2 {[%clk 0:00:19]} 36. Rd6 {[%clk
0:00:28.6]} 36... Rbc2 {[%clk 0:00:18.2]} 37. Qe4 {[%clk 0:00:27.3]} 37... Nc3
{[%clk 0:00:13.2]} 38. Qxc2 {[%clk 0:00:24.6]} 1-0

[Event "*** SCC Grand Prix: Titled Tuesday Blitz"]
[Site "Chess.com"]
[Date "2020.09.08"]
[Round "3"]
[White "bazar-wokzal"]
[Black "kinga2008"]
[Result "1-0"]
[WhiteElo "2476"]
[BlackElo "2144"]
[TimeControl "180+1"]
[EndTime "10:29:17 PDT"]
[Termination "bazar-wokzal won by checkmate"]

1. e4 {[%clk 0:03:00.9]} 1... c5 {[%clk 0:02:54.2]} 2. c3 {[%clk 0:03:00.8]}
2... d5 {[%clk 0:02:53.9]} 3. exd5 {[%clk 0:03:00.9]} 3... Qxd5 {[%clk
0:02:48.9]} 4. d4 {[%clk 0:03:00.9]} 4... cxd4 {[%clk 0:02:49.8]} 5. cxd4 {[%clk
0:03:00.7]} 5... Nc6 {[%clk 0:02:50.7]} 6. Nf3 {[%clk 0:03:00.5]} 6... Bg4
{[%clk 0:02:51.3]} 7. Nc3 {[%clk 0:02:59.6]} 7... Qh5 {[%clk 0:02:50]} 8. d5
{[%clk 0:02:52.3]} 8... Ne5 {[%clk 0:02:45.6]} 9. Bb5+ {[%clk 0:02:43.5]} 9...
Kd8 {[%clk 0:02:45.5]} 10. Be2 {[%clk 0:02:33.3]} 10... Bxf3 {[%clk 0:02:29]}
11. gxf3 {[%clk 0:02:31.4]} 11... Qf5 {[%clk 0:02:24]} 12. Be3 {[%clk
0:02:22.9]} 12... Nf6 {[%clk 0:02:13.3]} 13. Rg1 {[%clk 0:02:14.6]} 13... h6
{[%clk 0:02:12.2]} 14. Qb3 {[%clk 0:01:24.8]} 14... Qd7 {[%clk 0:01:56.3]} 15.
O-O-O {[%clk 0:01:21.3]} 15... a6 {[%clk 0:01:40.6]} 16. Kb1 {[%clk 0:01:18.9]}
16... b5 {[%clk 0:01:38.8]} 17. Ka1 {[%clk 0:01:14.9]} 17... Rc8 {[%clk
0:01:35.8]} 18. Bb6+ {[%clk 0:01:07.7]} 18... Ke8 {[%clk 0:01:35.5]} 19. Nxb5
{[%clk 0:01:03.1]} 19... Nxf3 {[%clk 0:01:27.8]} 20. Qxf3 {[%clk 0:00:54]} 20...
axb5 {[%clk 0:01:16.9]} 21. Qb3 {[%clk 0:00:51.2]} 21... b4 {[%clk 0:01:11.3]}
22. a4 {[%clk 0:00:43.6]} 22... Ra8 {[%clk 0:01:02.4]} 23. a5 {[%clk 0:00:38.2]}
23... Qd6 {[%clk 0:00:49.6]} 24. Bb5+ {[%clk 0:00:27.6]} 24... Nd7 {[%clk
0:00:49.2]} 25. Bxd7+ {[%clk 0:00:24.8]} 25... Qxd7 {[%clk 0:00:35.5]} 26. Qxb4
{[%clk 0:00:24.3]} 26... Qd6 {[%clk 0:00:19.4]} 27. Qb5+ {[%clk 0:00:22.5]}
27... Qd7 {[%clk 0:00:18.2]} 28. Qxd7+ {[%clk 0:00:20.4]} 28... Kxd7 {[%clk
0:00:17.4]} 29. Rc1 {[%clk 0:00:20.4]} 29... e6 {[%clk 0:00:14.8]} 30. Rc7+
{[%clk 0:00:19.3]} 30... Kd6 {[%clk 0:00:14.7]} 31. dxe6 {[%clk 0:00:18.3]}
31... fxe6 {[%clk 0:00:12.1]} 32. Rd1+ {[%clk 0:00:19.2]} 32... Ke5 {[%clk
0:00:11.9]} 33. Rf7 {[%clk 0:00:18.9]} 33... Bb4 {[%clk 0:00:09.1]} 34. Bc7+
{[%clk 0:00:16]} 34... Ke4 {[%clk 0:00:09.1]} 35. Rf4# {[%clk 0:00:16.1]} 1-0

[Event "*** SCC Grand Prix: Titled Tuesday Blitz"]
[Site "Chess.com"]
[Date "2020.09.08"]
[Round "3"]
[White "DvaHrasta"]
[Black "Morshynska"]
[Result "1-0"]
[WhiteElo "2480"]
[BlackElo "2172"]
[TimeControl "180+1"]
[EndTime "10:29:18 PDT"]
[Termination "DvaHrasta won on time"]

1. c4 {[%clk 0:03:00.9]} 1... c6 {[%clk 0:02:57.3]} 2. e4 {[%clk 0:02:59.9]}
2... d5 {[%clk 0:02:56.2]} 3. exd5 {[%clk 0:02:59.9]} 3... cxd5 {[%clk
0:02:57.1]} 4. cxd5 {[%clk 0:03:00.2]} 4... Qxd5 {[%clk 0:02:51.4]} 5. Nc3
{[%clk 0:02:59.5]} 5... Qd8 {[%clk 0:02:51]} 6. d4 {[%clk 0:02:59.4]} 6... Nf6
{[%clk 0:02:50]} 7. d5 {[%clk 0:02:59.6]} 7... a6 {[%clk 0:02:40.4]} 8. h4
{[%clk 0:02:47.7]} 8... e6 {[%clk 0:02:08.4]} 9. Bg5 {[%clk 0:02:35.1]} 9... Be7
{[%clk 0:02:00.8]} 10. Qa4+ {[%clk 0:02:27.2]} 10... Bd7 {[%clk 0:01:51.3]} 11.
Qb3 {[%clk 0:02:26.7]} 11... b5 {[%clk 0:01:47]} 12. Rd1 {[%clk 0:02:19]} 12...
Qb6 {[%clk 0:01:33.8]} 13. Nf3 {[%clk 0:02:04]} 13... O-O {[%clk 0:01:01.3]} 14.
Ne5 {[%clk 0:02:02.1]} 14... Bc8 {[%clk 0:00:46]} 15. d6 {[%clk 0:01:54]} 15...
Bxd6 {[%clk 0:00:38]} 16. Bxf6 {[%clk 0:01:53.9]} 16... gxf6 {[%clk 0:00:36.8]}
17. Ng4 {[%clk 0:01:47.8]} 17... Be5 {[%clk 0:00:23.3]} 18. Rh3 {[%clk
0:01:33.4]} 18... Nd7 {[%clk 0:00:16.8]} 19. Ne4 {[%clk 0:01:15.1]} 19... Qb7
{[%clk 0:00:09.6]} 20. Qf3 {[%clk 0:00:58.8]} 20... f5 {[%clk 0:00:09.4]} 21.
Nxe5 {[%clk 0:00:46.6]} 21... Nxe5 {[%clk 0:00:08]} 22. Qg3+ {[%clk 0:00:39.8]}
22... Ng6 {[%clk 0:00:02.7]} 23. Nd6 {[%clk 0:00:37.1]} 23... Qc7 {[%clk
0:00:02.2]} 24. h5 {[%clk 0:00:35.1]} 24... f4 {[%clk 0:00:02.4]} 25. Qg4 {[%clk
0:00:23.5]} 25... e5 {[%clk 0:00:01.9]} 26. Nxc8 {[%clk 0:00:21]} 26... Raxc8
{[%clk 0:00:02.8]} 27. hxg6 {[%clk 0:00:20.2]} 27... fxg6 {[%clk 0:00:03.7]} 28.
Qe6+ {[%clk 0:00:18.2]} 28... Kh8 {[%clk 0:00:03.8]} 29. Bd3 {[%clk 0:00:17.2]}
29... Qg7 {[%clk 0:00:02.3]} 30. Be4 {[%clk 0:00:14.9]} 30... Rc7 {[%clk
0:00:01.3]} 31. Bxg6 {[%clk 0:00:12]} 1-0

[Event "*** SCC Grand Prix: Titled Tuesday Blitz"]
[Site "Chess.com"]
[Date "2020.09.08"]
[Round "3"]
[White "1stSecond"]
[Black "eightbyeightchess"]
[Result "1-0"]
[WhiteElo "2789"]
[BlackElo "2436"]
[TimeControl "180+1"]
[EndTime "10:29:22 PDT"]
[Termination "1stSecond won on time"]

1. e4 {[%clk 0:02:51.9]} 1... e6 {[%clk 0:02:56.4]} 2. d4 {[%clk 0:02:50.4]}
2... d5 {[%clk 0:02:56.8]} 3. e5 {[%clk 0:02:47.9]} 3... c5 {[%clk 0:02:56.1]}
4. c3 {[%clk 0:02:48.1]} 4... Qb6 {[%clk 0:02:55.1]} 5. f4 {[%clk 0:02:44.9]}
5... Bd7 {[%clk 0:02:54.4]} 6. a3 {[%clk 0:02:40.9]} 6... f6 {[%clk 0:02:49.4]}
7. Nf3 {[%clk 0:02:35.4]} 7... Be7 {[%clk 0:02:41.2]} 8. b4 {[%clk 0:02:29.2]}
8... cxd4 {[%clk 0:02:40.2]} 9. cxd4 {[%clk 0:02:30.1]} 9... Nh6 {[%clk
0:02:37.4]} 10. Nc3 {[%clk 0:02:27]} 10... fxe5 {[%clk 0:02:29.8]} 11. fxe5
{[%clk 0:02:22.2]} 11... Nf5 {[%clk 0:02:29.8]} 12. Bd3 {[%clk 0:01:50.1]} 12...
O-O {[%clk 0:02:29.1]} 13. O-O {[%clk 0:01:27]} 13... Nxd4 {[%clk 0:01:49.4]}
14. Be3 {[%clk 0:01:08.9]} 14... Nxf3+ {[%clk 0:01:41.8]} 15. Rxf3 {[%clk
0:01:09.8]} 15... d4 {[%clk 0:01:35.9]} 16. Rh3 {[%clk 0:00:53]} 16... g6 {[%clk
0:01:14.4]} 17. Bxg6 {[%clk 0:00:44.5]} 17... hxg6 {[%clk 0:01:04.5]} 18. Qg4
{[%clk 0:00:43.7]} 18... Be8 {[%clk 0:00:56.3]} 19. Bxd4 {[%clk 0:00:40.4]}
19... Qc6 {[%clk 0:00:24.4]} 20. Ne4 {[%clk 0:00:30.9]} 20... Nd7 {[%clk
0:00:20.6]} 21. Ng5 {[%clk 0:00:27.6]} 21... Bxg5 {[%clk 0:00:08.8]} 22. Qxg5
{[%clk 0:00:28.5]} 22... Qe4 {[%clk 0:00:09.3]} 23. Rh4 {[%clk 0:00:20.8]} 23...
Qf5 {[%clk 0:00:08.9]} 24. Qh6 {[%clk 0:00:21.2]} 24... Qh5 {[%clk 0:00:01.2]}
25. Rxh5 {[%clk 0:00:19.8]} 25... gxh5 {[%clk 0:00:02.1]} 26. Qxe6+ {[%clk
0:00:19.4]} 26... Bf7 {[%clk 0:00:02.1]} 27. Qxd7 {[%clk 0:00:19]} 27... Rad8
{[%clk 0:00:02.8]} 28. Qe7 {[%clk 0:00:11.7]} 28... Rxd4 {[%clk 0:00:03.2]} 29.
Qg5+ {[%clk 0:00:09.9]} 29... Kh7 {[%clk 0:00:03.7]} 30. Qf5+ {[%clk 0:00:07.6]}
30... Kg7 {[%clk 0:00:04.1]} 31. e6 {[%clk 0:00:07.6]} 1-0

[Event "*** SCC Grand Prix: Titled Tuesday Blitz"]
[Site "Chess.com"]
[Date "2020.09.08"]
[Round "3"]
[White "paulrusan"]
[Black "JesseKraai"]
[Result "0-1"]
[WhiteElo "2264"]
[BlackElo "2510"]
[TimeControl "180+1"]
[EndTime "10:29:22 PDT"]
[Termination "JesseKraai won by resignation"]

1. e4 {[%clk 0:03:00.9]} 1... d6 {[%clk 0:02:59.7]} 2. d4 {[%clk 0:03:00.6]}
2... Nf6 {[%clk 0:02:59.9]} 3. Nc3 {[%clk 0:03:00.7]} 3... e5 {[%clk 0:02:59.5]}
4. Nf3 {[%clk 0:03:00]} 4... Nbd7 {[%clk 0:02:58.7]} 5. Bc4 {[%clk 0:02:58.6]}
5... Be7 {[%clk 0:02:58.5]} 6. O-O {[%clk 0:02:58.7]} 6... c6 {[%clk 0:02:58.8]}
7. a4 {[%clk 0:02:58.6]} 7... O-O {[%clk 0:02:57.8]} 8. Re1 {[%clk 0:02:58.7]}
8... Qc7 {[%clk 0:02:57.5]} 9. h3 {[%clk 0:02:58.7]} 9... b6 {[%clk 0:02:57.2]}
10. d5 {[%clk 0:02:58.9]} 10... Bb7 {[%clk 0:02:55.1]} 11. Qe2 {[%clk
0:02:46.1]} 11... a6 {[%clk 0:02:51.2]} 12. dxc6 {[%clk 0:02:45.8]} 12... Qxc6
{[%clk 0:02:49.1]} 13. Nd5 {[%clk 0:02:43.6]} 13... Nxd5 {[%clk 0:02:47.6]} 14.
Bxd5 {[%clk 0:02:43.5]} 14... Qc7 {[%clk 0:02:47.5]} 15. Bxb7 {[%clk 0:02:42.8]}
15... Qxb7 {[%clk 0:02:47.5]} 16. Bg5 {[%clk 0:02:26.5]} 16... Bxg5 {[%clk
0:02:44.8]} 17. Nxg5 {[%clk 0:02:26.3]} 17... Rac8 {[%clk 0:02:39.8]} 18. c4
{[%clk 0:02:24]} 18... Nc5 {[%clk 0:02:33.8]} 19. Ra3 {[%clk 0:02:03.7]} 19...
h6 {[%clk 0:02:19.2]} 20. Nf3 {[%clk 0:02:02.9]} 20... Rc6 {[%clk 0:02:18.4]}
21. Nd2 {[%clk 0:01:57.3]} 21... Ne6 {[%clk 0:02:15.7]} 22. g3 {[%clk
0:01:38.8]} 22... Nd4 {[%clk 0:02:15]} 23. Qd1 {[%clk 0:01:39.1]} 23... Qd7
{[%clk 0:02:07.6]} 24. Kg2 {[%clk 0:01:37.7]} 24... f5 {[%clk 0:02:08.2]} 25.
Rd3 {[%clk 0:01:32.1]} 25... f4 {[%clk 0:02:06.7]} 26. b3 {[%clk 0:01:20.1]}
26... Rc7 {[%clk 0:02:01.7]} 27. Rxd4 {[%clk 0:01:18.7]} 27... exd4 {[%clk
0:01:58.3]} 28. Nf3 {[%clk 0:01:19]} 28... fxg3 {[%clk 0:01:54.6]} 29. fxg3
{[%clk 0:01:18.9]} 29... Qf7 {[%clk 0:01:45.6]} 30. Rf1 {[%clk 0:01:18.7]} 30...
Qf6 {[%clk 0:01:40.6]} 31. Qxd4 {[%clk 0:01:17.7]} 31... Qxd4 {[%clk 0:01:40]}
32. Nxd4 {[%clk 0:01:17.8]} 32... Rxf1 {[%clk 0:01:39.9]} 33. Kxf1 {[%clk
0:01:18.1]} 33... Kf7 {[%clk 0:01:39.8]} 34. Ke2 {[%clk 0:01:11.1]} 34... Kf6
{[%clk 0:01:39.7]} 35. Kd3 {[%clk 0:01:09.7]} 35... g6 {[%clk 0:01:39]} 36. Ne2
{[%clk 0:01:03.3]} 36... Ke5 {[%clk 0:01:23]} 37. Nf4 {[%clk 0:01:00.9]} 37...
g5 {[%clk 0:01:17.8]} 38. Nd5 {[%clk 0:01:00.6]} 38... Rf7 {[%clk 0:01:17.4]}
39. Nxb6 {[%clk 0:00:58.7]} 39... Rf3+ {[%clk 0:01:17.4]} 40. Kc2 {[%clk
0:00:58.4]} 40... Rxg3 {[%clk 0:01:17.2]} 41. a5 {[%clk 0:00:53.2]} 41... Rxh3
{[%clk 0:01:15.5]} 42. b4 {[%clk 0:00:46.7]} 42... g4 {[%clk 0:01:10.8]} 43. b5
{[%clk 0:00:45.8]} 43... Ra3 {[%clk 0:01:10.7]} 44. Nd7+ {[%clk 0:00:29.3]}
44... Ke6 {[%clk 0:01:09.8]} 45. Nf8+ {[%clk 0:00:20.6]} 45... Ke7 {[%clk
0:01:08.9]} 46. b6 {[%clk 0:00:20.9]} 46... Rf3 {[%clk 0:00:58.6]} 47. Ng6+
{[%clk 0:00:19.5]} 47... Kd7 {[%clk 0:00:58.7]} 48. c5 {[%clk 0:00:14.8]} 48...
dxc5 {[%clk 0:00:49.5]} 49. Ne5+ {[%clk 0:00:14]} 49... Kc8 {[%clk 0:00:49.9]}
50. Nxf3 {[%clk 0:00:13.6]} 50... gxf3 {[%clk 0:00:50.4]} 51. Kd2 {[%clk
0:00:12.1]} 51... c4 {[%clk 0:00:50]} 52. e5 {[%clk 0:00:12.3]} 52... c3+ {[%clk
0:00:50.4]} 53. Kxc3 {[%clk 0:00:12.5]} 53... f2 {[%clk 0:00:50.9]} 54. e6
{[%clk 0:00:12.9]} 54... f1=Q {[%clk 0:00:51.4]} 55. e7 {[%clk 0:00:13.2]} 55...
Qe2 {[%clk 0:00:51]} 0-1

[Event "*** SCC Grand Prix: Titled Tuesday Blitz"]
[Site "Chess.com"]
[Date "2020.09.08"]
[Round "3"]
[White "markberk"]
[Black "AliKa2810"]
[Result "0-1"]
[WhiteElo "2384"]
[BlackElo "2584"]
[TimeControl "180+1"]
[EndTime "10:29:23 PDT"]
[Termination "AliKa2810 won on time"]

1. Nf3 {[%clk 0:03:00.9]} 1... d5 {[%clk 0:02:59.4]} 2. g3 {[%clk 0:03:00.7]}
2... Nc6 {[%clk 0:02:58.9]} 3. d4 {[%clk 0:02:59.7]} 3... Bg4 {[%clk 0:02:58]}
4. Bg2 {[%clk 0:02:59.5]} 4... Qd7 {[%clk 0:02:57.1]} 5. c4 {[%clk 0:02:59.3]}
5... e6 {[%clk 0:02:44.2]} 6. Nc3 {[%clk 0:02:57.5]} 6... dxc4 {[%clk
0:02:39.6]} 7. O-O {[%clk 0:02:51.9]} 7... Nf6 {[%clk 0:02:35.8]} 8. Ne5 {[%clk
0:02:46.7]} 8... Nxe5 {[%clk 0:02:30.8]} 9. dxe5 {[%clk 0:02:46.5]} 9... Qxd1
{[%clk 0:02:18]} 10. Rxd1 {[%clk 0:02:46]} 10... Nd5 {[%clk 0:02:18.6]} 11. Nxd5
{[%clk 0:02:37]} 11... exd5 {[%clk 0:02:19.5]} 12. Bxd5 {[%clk 0:02:30.3]} 12...
Bxe2 {[%clk 0:02:07.4]} 13. Re1 {[%clk 0:02:25.3]} 13... Bd3 {[%clk 0:02:04.4]}
14. Bxb7 {[%clk 0:02:20.3]} 14... Rb8 {[%clk 0:01:59.5]} 15. Bc6+ {[%clk
0:02:17.8]} 15... Kd8 {[%clk 0:01:53.2]} 16. b3 {[%clk 0:02:04.3]} 16... Bb4
{[%clk 0:01:33.3]} 17. Rd1 {[%clk 0:01:57.8]} 17... Bc3 {[%clk 0:01:33.8]} 18.
Bg5+ {[%clk 0:01:55.6]} 18... Kc8 {[%clk 0:01:32.4]} 19. Rac1 {[%clk 0:01:39.9]}
19... Bb2 {[%clk 0:01:31.1]} 20. Rxc4 {[%clk 0:01:17.6]} 20... Bxc4 {[%clk
0:01:29]} 21. bxc4 {[%clk 0:01:15.8]} 21... Rb6 {[%clk 0:01:13.7]} 22. Bd7+
{[%clk 0:01:15.4]} 22... Kb8 {[%clk 0:01:11.1]} 23. c5 {[%clk 0:01:14.9]} 23...
Rg6 {[%clk 0:01:00.4]} 24. Rb1 {[%clk 0:01:09.5]} 24... c6 {[%clk 0:00:52.3]}
25. e6 {[%clk 0:00:54.9]} 25... Rxg5 {[%clk 0:00:46.7]} 26. e7 {[%clk
0:00:50.4]} 26... Kc7 {[%clk 0:00:47]} 27. e8=Q {[%clk 0:00:45.5]} 27... Rxe8
{[%clk 0:00:46.5]} 28. Bxe8 {[%clk 0:00:44.6]} 28... Bd4 {[%clk 0:00:47]} 29.
Bxf7 {[%clk 0:00:42.2]} 29... Rf5 {[%clk 0:00:47]} 30. Bb3 {[%clk 0:00:26.2]}
30... Rxf2 {[%clk 0:00:46.5]} 31. Rd1 {[%clk 0:00:20.2]} 31... Bxc5 {[%clk
0:00:46.4]} 32. Kh1 {[%clk 0:00:17.6]} 32... a5 {[%clk 0:00:43.9]} 33. Rc1
{[%clk 0:00:15]} 33... Kb6 {[%clk 0:00:43.4]} 34. Rb1 {[%clk 0:00:12.4]} 34...
Bb4 {[%clk 0:00:38.5]} 35. Rd1 {[%clk 0:00:05]} 35... c5 {[%clk 0:00:33.7]} 36.
Rd6+ {[%clk 0:00:04.6]} 36... Kc7 {[%clk 0:00:33.3]} 37. Ra6 {[%clk 0:00:03.9]}
37... Rf1+ {[%clk 0:00:27.8]} 38. Kg2 {[%clk 0:00:02.7]} 38... Rc1 {[%clk
0:00:28.3]} 0-1

[Event "*** SCC Grand Prix: Titled Tuesday Blitz"]
[Site "Chess.com"]
[Date "2020.09.08"]
[Round "3"]
[White "mbojan"]
[Black "KNCP_719"]
[Result "1-0"]
[WhiteElo "2803"]
[BlackElo "2567"]
[TimeControl "180+1"]
[EndTime "10:29:24 PDT"]
[Termination "mbojan won on time"]

1. e4 {[%clk 0:03:00.9]} 1... c6 {[%clk 0:03:00]} 2. Bc4 {[%clk 0:03:00.2]} 2...
d5 {[%clk 0:03:00.1]} 3. Bb3 {[%clk 0:03:00.8]} 3... e6 {[%clk 0:02:32.5]} 4.
Nc3 {[%clk 0:02:59.3]} 4... Nd7 {[%clk 0:02:29.7]} 5. Nf3 {[%clk 0:02:51.7]}
5... dxe4 {[%clk 0:02:27.3]} 6. Nxe4 {[%clk 0:02:50.1]} 6... Ngf6 {[%clk
0:02:28.2]} 7. Nxf6+ {[%clk 0:02:45.5]} 7... Nxf6 {[%clk 0:02:29.1]} 8. O-O
{[%clk 0:02:45.6]} 8... Be7 {[%clk 0:02:26.4]} 9. d4 {[%clk 0:02:45.3]} 9... O-O
{[%clk 0:02:26.8]} 10. Bf4 {[%clk 0:02:41.5]} 10... b6 {[%clk 0:02:25.3]} 11.
Qe2 {[%clk 0:02:38.9]} 11... Bb7 {[%clk 0:02:24.8]} 12. Rad1 {[%clk 0:02:38.2]}
12... Qc8 {[%clk 0:02:17.9]} 13. Bg3 {[%clk 0:02:00.9]} 13... c5 {[%clk
0:02:10.8]} 14. d5 {[%clk 0:01:59.9]} 14... Ba6 {[%clk 0:01:14.8]} 15. c4 {[%clk
0:01:55.9]} 15... Nxd5 {[%clk 0:00:49.5]} 16. Rxd5 {[%clk 0:01:46.6]} 16... exd5
{[%clk 0:00:50.4]} 17. Qxe7 {[%clk 0:01:47.3]} 17... dxc4 {[%clk 0:00:50.8]} 18.
Bc2 {[%clk 0:01:46]} 18... c3 {[%clk 0:00:50]} 19. Rb1 {[%clk 0:01:16.9]} 19...
cxb2 {[%clk 0:00:38.9]} 20. Qh4 {[%clk 0:01:05.7]} 20... h6 {[%clk 0:00:24.2]}
21. Qe4 {[%clk 0:00:50.2]} 21... f5 {[%clk 0:00:22.6]} 22. Qd5+ {[%clk
0:00:49.7]} 22... Kh7 {[%clk 0:00:05.2]} 23. Be5 {[%clk 0:00:38.6]} 23... Bb7
{[%clk 0:00:03.9]} 24. Qb3 {[%clk 0:00:35.6]} 24... Bxf3 {[%clk 0:00:03.6]} 25.
Qxf3 {[%clk 0:00:36.5]} 25... Qe6 {[%clk 0:00:03.6]} 26. Bxb2 {[%clk 0:00:35.9]}
26... Kh8 {[%clk 0:00:03]} 27. Bb3 {[%clk 0:00:31.7]} 27... Qg6 {[%clk
0:00:02.3]} 28. h3 {[%clk 0:00:24.6]} 28... Rad8 {[%clk 0:00:02.5]} 29. Qc3
{[%clk 0:00:23.4]} 29... f4 {[%clk 0:00:02.1]} 30. Re1 {[%clk 0:00:22.6]} 30...
Rd3 {[%clk 0:00:01.6]} 31. Qc4 {[%clk 0:00:16.8]} 31... Rxh3 {[%clk 0:00:01.1]}
32. Bc2 {[%clk 0:00:13.9]} 1-0

[Event "*** SCC Grand Prix: Titled Tuesday Blitz"]
[Site "Chess.com"]
[Date "2020.09.08"]
[Round "3"]
[White "barriochess"]
[Black "rududuyk"]
[Result "1-0"]
[WhiteElo "2368"]
[BlackElo "2149"]
[TimeControl "180+1"]
[EndTime "10:29:24 PDT"]
[Termination "barriochess won by resignation"]

1. d4 {[%clk 0:03:00.9]} 1... e6 {[%clk 0:02:59.7]} 2. e4 {[%clk 0:02:57.6]}
2... d5 {[%clk 0:02:56.6]} 3. e5 {[%clk 0:02:57.4]} 3... c5 {[%clk 0:02:55.6]}
4. c3 {[%clk 0:02:56.9]} 4... Nc6 {[%clk 0:02:56.1]} 5. Nf3 {[%clk 0:02:56.7]}
5... Bd7 {[%clk 0:02:55.9]} 6. Be2 {[%clk 0:02:54]} 6... Nge7 {[%clk 0:02:21.6]}
7. O-O {[%clk 0:02:51.5]} 7... Nf5 {[%clk 0:02:19.1]} 8. g4 {[%clk 0:02:40.3]}
8... Nfe7 {[%clk 0:02:18.2]} 9. a3 {[%clk 0:02:26]} 9... cxd4 {[%clk 0:02:11.7]}
10. cxd4 {[%clk 0:02:25.3]} 10... h5 {[%clk 0:02:11]} 11. h3 {[%clk 0:02:23.8]}
11... hxg4 {[%clk 0:01:44.5]} 12. hxg4 {[%clk 0:02:22.2]} 12... Ng6 {[%clk
0:01:44.6]} 13. Be3 {[%clk 0:02:18.3]} 13... Be7 {[%clk 0:01:42.7]} 14. Nc3
{[%clk 0:02:16.4]} 14... a6 {[%clk 0:01:41.9]} 15. b4 {[%clk 0:02:15.1]} 15...
b5 {[%clk 0:01:38.3]} 16. Kg2 {[%clk 0:02:06.9]} 16... Qc7 {[%clk 0:01:22.1]}
17. Rc1 {[%clk 0:02:04.8]} 17... O-O-O {[%clk 0:01:19.6]} 18. a4 {[%clk
0:01:50.9]} 18... bxa4 {[%clk 0:00:54.1]} 19. Bxa6+ {[%clk 0:01:49]} 19... Kb8
{[%clk 0:00:54.3]} 20. b5 {[%clk 0:01:33.7]} 20... Nb4 {[%clk 0:00:41.4]} 21.
Nxa4 {[%clk 0:01:30.8]} 21... Qa7 {[%clk 0:00:37.1]} 22. Nc5 {[%clk 0:01:06]}
22... Bc8 {[%clk 0:00:19.9]} 23. Ra1 {[%clk 0:00:49.4]} 23... Nxa6 {[%clk
0:00:16.7]} 24. Nxa6+ {[%clk 0:00:44.1]} 24... Bxa6 {[%clk 0:00:16.6]} 25. Rxa6
{[%clk 0:00:42.8]} 25... Qb7 {[%clk 0:00:16.7]} 26. Qa4 {[%clk 0:00:40.2]} 26...
Rc8 {[%clk 0:00:14.6]} 27. Rb1 {[%clk 0:00:38.7]} 27... Nh4+ {[%clk 0:00:12]}
28. Nxh4 {[%clk 0:00:37.7]} 28... Rxh4 {[%clk 0:00:12.9]} 29. b6 {[%clk
0:00:25.9]} 29... Qc6 {[%clk 0:00:10.4]} 30. Qd1 {[%clk 0:00:19.4]} 30... f6
{[%clk 0:00:09.4]} 31. Rba1 {[%clk 0:00:18.5]} 31... fxe5 {[%clk 0:00:08]} 32.
Ra8+ {[%clk 0:00:18.7]} 32... Qxa8 {[%clk 0:00:07.7]} 33. Rxa8+ {[%clk
0:00:17.9]} 33... Kxa8 {[%clk 0:00:08.6]} 34. Qa4+ {[%clk 0:00:17]} 34... Kb7
{[%clk 0:00:08]} 35. Qa7+ {[%clk 0:00:17.2]} 35... Kc6 {[%clk 0:00:08.6]} 36. b7
{[%clk 0:00:16.5]} 36... Rc7 {[%clk 0:00:07.2]} 37. Qa6+ {[%clk 0:00:15.2]}
37... Kd7 {[%clk 0:00:05.6]} 38. b8=Q {[%clk 0:00:16.1]} 1-0